Cogmind - Beta 11.1 @@@ ROGUE MODE // 2022.07.01 @ 16:56:14 Player: Cyurio Result: Destroyed by H-66 Slayer with Gauss Rifle Performance ------------- Evolutions (3) 1500 Regions Visited (10) 2000 Robots Destroyed (74) 370 Value Destroyed (2169) 2169 Prototype IDs (27) 540 Alien Tech Used (0) 0 Bonus (625) 625 TOTAL SCORE: 7204 Bonus ------- Follower Combat Kills 325 Aligned with FarCom 300 Cogmind --------- Core Integrity 0/700 Matter 54/300 Energy 100/100 System Corruption 12% Temperature Cool (0) Movement Walking (130) Location -7/Lower Caves Parts ------- > --- POWER (1) -------- (None) > --- PROPULSION (3) --- Improved Titanium Leg > --- UTILITY (6) ------ Large Storage Unit Improved Signal Interpreter Advanced Targeting Computer > --- WEAPON (3) ------- (None) > --- INVENTORY (15) --- High-capacity Storage Unit Visual Processing Unit Advanced Terrain Scan Processor Transmission Jammer ECM Suite Heart of Steel Datajack Molecular Deconstructor Heavy Hammer Katana Peak State ------------ > --- POWER ------------ Light Nuclear Core > --- PROPULSION ------- Improved Titanium Leg Improved Titanium Leg Improved Titanium Leg > --- UTILITY ---------- High-capacity Storage Unit Improved Signal Interpreter Advanced Targeting Computer Melee Analysis Suite Improved Melee Analysis Suite Core Analyzer > --- WEAPON ----------- Molecular Deconstructor Katana > --- INVENTORY -------- Light Nuclear Core Carbon-fiber Leg Improved Titanium Leg Improved Titanium Leg Armored Huge Wheel Large Storage Unit Visual Processing Unit Advanced Terrain Scan Processor Transmission Jammer ECM Suite Heart of Steel Gauss Rifle Flak Gun Flak Cannon Gauss Cannon Datajack Heavy Hammer [Rating: 61] Favorites ----------- Power Ion Engine Engine Ion Engine Power Core Light Nuclear Core Propulsion Improved Titanium Leg Treads Light Treads Leg Improved Titanium Leg Wheel Armored Wheel Utility Large Storage Unit Device Improved Terrain Scanner Storage Large Storage Unit Processor Advanced Targeting Computer Protection Hardened Light Armor Plating Weapon Katana Energy Gun Small Laser Energy Cannon Beam Cannon Ballistic Gun High-powered Shotgun Ballistic Cannon Improved Light Cannon Launcher Rocket Launcher Special Weapon Molecular Deconstructor Slashing Weapon Katana Build | -11 -10 -10 -9 -9 -9 -8 -8 -7 -7 -7 ------- Run | Scr Mat Min Mat Min Exi Min Mat Fac Low Low Slots Evolved 6 | . . . 2 . . . 2 2 . . Power . | . . . . . . . . . . . Propulsion 1 | . . . . . . . . 1 . . Utility 4 | . . . 1 . . . 2 1 . . Weapon 1 | . . . 1 . . . . . . . Parts Attached 91 | . 14 5 9 1 3 . 30 9 3 17 Power 8 | . 1 . . 1 . . 4 . . 2 Engine 2 | . 1 . . 1 . . . . . . Core 6 | . . . . . . . 4 . . 2 Reactor . | . . . . . . . . . . . Propulsion 31 | . 4 . 3 . 3 . 10 5 1 5 Treads 5 | . . . 2 . 1 . 2 . . . Leg 17 | . 1 . . . . . 6 5 1 4 Wheel 9 | . 3 . 1 . 2 . 2 . . 1 Hover . | . . . . . . . . . . . Flight . | . . . . . . . . . . . Utility 23 | . 3 . 3 . . . 8 4 2 3 Device 6 | . 1 . 1 . . . 2 1 . 1 Storage 3 | . 1 . . . . . . . 1 1 Processor 9 | . 1 . 1 . . . 3 2 1 1 Hackware . | . . . . . . . . . . . Protection 5 | . . . 1 . . . 3 1 . . Artifact . | . . . . . . . . . . . Weapon 29 | . 6 5 3 . . . 8 . . 7 Energy Gun 5 | . 3 2 . . . . . . . . Energy Cannon 2 | . 1 1 . . . . . . . . Ballistic Gun 6 | . 1 . 1 . . . 2 . . 2 Ballistic Cannon 7 | . . . 2 . . . 2 . . 3 Launcher 3 | . 1 2 . . . . . . . . Special Weapon 2 | . . . . . . . . . . 2 Impact Weapon . | . . . . . . . . . . . Slashing Weapon 4 | . . . . . . . 4 . . . Piercing Weapon . | . . . . . . . . . . . Special Melee Weapon . | . . . . . . . . . . . Unidentified Prototypes 2 | . . . . . . . . . . 2 Parts Lost 39 | . 3 3 1 1 . . 12 4 . 15 Power 7 | . 1 . . 1 . . 2 . . 3 Propulsion 11 | . 1 . . . . . 3 1 . 6 Utility 7 | . . . 1 . . . 3 1 . 2 Weapon 14 | . 1 3 . . . . 4 2 . 4 Highest Loss Streak 7 | . 2 2 1 1 . . 4 2 . 7 To Critical Strikes 1 | . . . . . . . . . . 1 Average Slot Usage (%) 93 | . 97 98 96 100 100 100 89 91 84 82 Engine 6 | . 13 14 11 11 11 11 2 . . . Core 2 | . . . . . . . 1 7 7 6 Treads 6 | . . . 14 22 13 11 3 . . . Leg 11 | . 14 . . . . . 11 22 23 20 Wheel 4 | . 12 28 7 . 9 11 3 . . . Device 2 | . . . 4 . . . 6 6 . . Storage 9 | . 14 14 11 11 11 11 9 7 7 7 Processor 17 | . 11 14 11 11 11 11 19 23 30 33 Protection 6 | . . . 5 11 11 11 8 7 7 1 Energy Gun 2 | . 10 4 3 . . . . . . . Energy Cannon 1 | . 3 11 10 . . . . . . . Ballistic Gun 5 | . 13 2 . 11 11 11 1 . . 1 Ballistic Cannon 8 | . . . 16 22 22 22 7 . . 1 Slashing Weapon 6 | . . . . . . . 13 15 7 5 Naked Turns . | . . . . . . . . . . . Heaviest Build 57 | 11 30 32 41 41 41 41 45 35 50 57 Greatest Support 60 | 20 24 24 40 40 40 12 40 55 60 60 Greatest Overweight (x) 3 | . 2 1 3 1 3 3 3 . . 1 Average Overweight (x) . | . . 1 . 1 2 3 1 . . . Largest Inventory Capacity 20 | . 15 15 15 15 15 15 15 15 20 20 Average Capacity 15 | . 14 15 15 15 15 15 15 15 18 19 Most Carried 20 | . 14 14 15 15 15 15 15 15 19 20 Average Carried 14 | . 10 12 13 14 15 15 13 14 17 17 Final Capacity 20 | 8 15 15 15 15 15 15 15 15 20 15 Final Carried 18 | 6 14 11 15 15 15 15 15 14 18 13 Class Distribution -------------------- 35% | Mutant 28% | Gunner 15% | Scavenger-Assassin 10% | Assassin 7% | Skirmisher 3% | Scavenger-Mutant Dominant Class ---------------- Mutant | -10/Materials Mutant | -10/Mines Gunner | -9/Materials Gunner | -9/Mines Gunner | -9/Exiles Skirmisher | -8/Mines Assassin | -8/Materials Scavenger-Assassin | -7/Factory Mutant | -7/Lower Caves Mutant | -7/Lower Caves Resources | -11 -10 -10 -9 -9 -9 -8 -8 -7 -7 -7 ----------- Run | Scr Mat Min Mat Min Exi Min Mat Fac Low Low Matter Collected 1713 | 200 161 61 281 317 . . 578 75 20 20 Remotely . | . . . . . . . . . . . Salvage Created 2506 | . 625 50 255 328 . . 735 395 . 118 Parts 135 | . 26 2 15 28 . . 35 22 . 7 Haulers Intercepted 5 | . 2 . 2 . . . 1 . . . Recyclers Shooed 1 | . . . . . . . 1 . . . Parts Field Recycled . | . . . . . . . . . . . Retrieved Matter . | . . . . . . . . . . . Parts Self-Destructed 24 | . . . . . . . . . 7 17 Prevented . | . . . . . . . . . . . Kills | -11 -10 -10 -9 -9 -9 -8 -8 -7 -7 -7 ------- Run | Scr Mat Min Mat Min Exi Min Mat Fac Low Low Combat Hostiles Destroyed 69 | . 11 8 5 15 . . 19 7 . 4 Melee 20 | . . . . . . . 12 7 . 1 Guns 21 | . 8 . 1 10 . . 2 . . . Cannons 18 | . 1 1 4 5 . . 5 . . 2 AOE 9 | . 2 7 . . . . . . . . Classes Destroyed 14 | . 5 1 . 2 . . 4 1 . 1 Worker 2 | . 1 1 . . . . . . . . Builder 2 | . . . . . . . 1 1 . . Tunneler 1 | . . . . 1 . . . . . . Hauler 5 | . 2 . 2 . . . 1 . . . Recycler 2 | . 1 . . . . . 1 . . . Watcher 1 | . . . . . . . . 1 . . Swarmer 20 | . 3 . 1 7 . . 4 2 . 3 Grunt 31 | . 8 . 4 6 . . 10 3 . . Duelist 3 | . . . . 2 . . 1 . . . Sentry 4 | . . . . . . . 1 2 . 1 Specialist 2 | . . . . . . . 2 . . . Heavy 1 | . . . . . . . 1 . . . Tinkerer 1 | . . . . . . . . . . 1 Assembled 8 | . . 8 . . . . . . . . Best Kill Streak 9 | . 3 9 3 6 . . 5 2 . 3 Combat Bots Only 8 | . 3 8 3 6 . . 4 2 . 3 Max Kills in Single Turn 3 | . 2 3 1 1 . . 1 1 . 2 Gunslinging . | . . . . . . . . . . . Exploded 3 | . 1 3 . . . . . . . . Melee 1 | . . . . . . . 1 1 . 1 Uniques/NPCs Destroyed . | . . . . . . . . . . . Combat | -11 -10 -10 -9 -9 -9 -8 -8 -7 -7 -7 -------- Run | Scr Mat Min Mat Min Exi Min Mat Fac Low Low Damage Taken 6089 | . 425 340 159 305 . . 1858 552 . 2450 Core 1234 | . 121 31 6 23 . . 344 93 . 616 Absorbed by Shields . | . . . . . . . . . . . Regen/Repaired (Parts) 114 | . . . . . . . . 114 . . Core Remaining (%) 67 | 100 . 39 . . . 92 37 . . . Volleys Fired 139 | . 43 18 15 26 . . 23 . . 14 Largest 3 | . 2 2 3 3 . . 3 . . 3 Hottest 138 | . 80 100 138 103 . . 122 . . 120 Shots Fired 324 | . 82 24 44 78 . . 68 . . 28 Gun 131 | . 70 6 1 26 . . 18 . . 10 Cannon 179 | . 9 12 43 52 . . 50 . . 13 Launcher 9 | . 3 6 . . . . . . . . Special 5 | . . . . . . . . . . 5 Kinetic 235 | . 36 2 28 78 . . 68 . . 23 Thermal 60 | . 33 12 15 . . . . . . . Explosive 6 | . . 6 . . . . . . . . Electromagnetic 18 | . 13 4 1 . . . . . . . Robot Hit Streak 18 | . 18 17 7 5 . . 11 . . 5 Robot Miss Streak 7 | . 2 3 3 4 . . 3 . . 7 Penetration Max . | . . . . . . . . . . . Secondary Targets . | . . . . . . . . . . . Shots Hit Robots 293 | . 66 12 25 38 . . 86 35 . 31 Core Hits 127 | . 25 13 9 20 . . 33 11 . 16 Critical Kills . | . . . . . . . . . . . Critical Parts Destroyed . | . . . . . . . . . . . Critical Strikes 20 | . . . 1 3 . . 8 5 . 3 Destroy 1 | . . . . . . . . . . 1 Blast 8 | . . . 1 3 . . 3 . . 1 Sever 11 | . . . . . . . 5 5 . 1 Melee Attacks 129 | . . . . . . . 62 53 1 13 Impact . | . . . . . . . . . . . Slashing 129 | . . . . . . . 62 53 1 13 Piercing . | . . . . . . . . . . . Sneak Attacks 11 | . . . . . . . 5 4 . 2 Combat Hostiles . | . . . . . . . . . . . Follow-up Attacks 14 | . . . . . . . 10 4 . . Damage Inflicted 7399 | . 863 589 545 781 . . 2486 1342 . 793 Guns 1274 | . 536 27 15 293 . . 326 . . 77 Cannons 2264 | . 141 102 530 487 . . 767 . . 237 Explosions 645 | . 185 460 . . . . . . . . Melee 3214 | . . . . . . . 1393 1342 . 479 Ramming 2 | . 1 . . 1 . . . . . . Kinetic 2711 | . 197 6 321 780 . . 1093 . . 314 Thermal 778 | . 467 102 209 . . . . . . . Explosive 460 | . . 460 . . . . . . . . Electromagnetic 234 | . 198 21 15 . . . . . . . Impact . | . . . . . . . . . . . Slashing 3214 | . . . . . . . 1393 1342 . 479 Piercing . | . . . . . . . . . . . Highest Corruption 12 | . 1 1 . . . . . . . 12 Average Corruption 1 | . 1 1 . . . . . . . 6 Corruption Purged . | . . . . . . . . . . . Corruption Blocked . | . . . . . . . . . . . Effects 11 | . 6 1 . . . . . . . 4 Message Errors 2 | . . . . . . . . . . 2 Matter Fused 4 | . 3 . . . . . . . . 1 Heat Flow Errors 2 | . 2 . . . . . . . . . Energy Discharges 1 | . . 1 . . . . . . . . Data Loss (minor) 2 | . 1 . . . . . . . . 1 Overload Shots . | . . . . . . . . . . . Overflow Damage 296 | . 26 46 10 . . . 74 98 . 42 Projectiles 25 | . . 6 10 . . . 8 . . 1 Explosions 66 | . 26 40 . . . . . . . . Melee 205 | . . . . . . . 66 98 . 41 Knockbacks 17 | . . . 1 5 . . 3 . . 8 Impact . | . . . . . . . . . . . Kinetic 15 | . . . 1 4 . . 3 . . 7 Secondary 2 | . . . . 1 . . . . . 1 Self-Inflicted Damage 172 | . 74 98 . . . . . . . . Shots 6 | . 3 3 . . . . . . . . Rammed 2 | . 1 . . 1 . . . . . . Targets Rammed 2 | . 1 . . 1 . . . . . . Kicked . | . . . . . . . . . . . Crushed . | . . . . . . . . . . . Highest Temperature 509 | . 275 180 318 324 . . 509 . . 204 Average Temperature 103 | . 71 85 109 98 . . 150 . . 104 Received Heat Transfer 1292 | . 186 80 66 96 . . 576 144 . 144 Effects 4 | . . . . 2 . . 2 . . . Shutdowns 1 | . . . . . . . 1 . . . Energy Bleed 2 | . . . . 2 . . . . . . Matter Decay 1 | . . . . . . . 1 . . . Siege Activations . | . . . . . . . . . . . Robots Corrupted . | . . . . . . . . . . . Combat Hostiles . | . . . . . . . . . . . Parts Fried . | . . . . . . . . . . . Impact Corruptions . | . . . . . . . . . . . Robots Melted . | . . . . . . . . . . . Combat Hostiles . | . . . . . . . . . . . Parts Melted 2 | . 2 . . . . . . . . . Heat Transferred 1587 | . 921 222 444 . . . . . . . Parts Sabotaged . | . . . . . . . . . . . Parts Stolen . | . . . . . . . . . . . Parts Stripped . | . . . . . . . . . . . Power Chain Reactions 2 | . 2 . . . . . . . . . Missiles Intercepted . | . . . . . . . . . . . Alert | -11 -10 -10 -9 -9 -9 -8 -8 -7 -7 -7 ------- Run | Scr Mat Min Mat Min Exi Min Mat Fac Low Low Peak Influence 396 | . 197 188 385 396 . . 263 207 . . Initial 148 | . . 31 65 148 . . . 119 . . Average 129 | . 71 111 237 262 . . 73 78 . . Maximum Alert Level 1 | . . . 1 1 . . 1 1 . . Low Security (%) 74 | . 100 100 44 15 . 100 91 96 . . Level 1 25 | . . . 55 84 . . 8 3 . . Level 2 . | . . . . . . . . . . . Level 3 . | . . . . . . . . . . . Level 4 . | . . . . . . . . . . . Level 5 . | . . . . . . . . . . . High Security . | . . . . . . . . . . . Max Security . | . . . . . . . . . . . Squads Dispatched 14 | . 3 . 2 . . . 5 4 . . Investigation 3 | . 1 . . . . . 1 1 . . Extermination 1 | . . . . . . . . 1 . . Reinforcement 10 | . 2 . 2 . . . 4 2 . . Assault . | . . . . . . . . . . . Garrison . | . . . . . . . . . . . Intercept . | . . . . . . . . . . . Searches Triggered . | . . . . . . . . . . . Construction Impeded 1 | . . . . . . . 1 . . . Haulers Reinforced 2 | . . . . . . . . 2 . . Active Scanning Responses . | . . . . . . . . . . . Cargo Convoy Interrupts . | . . . . . . . . . . . Stealth | -11 -10 -10 -9 -9 -9 -8 -8 -7 -7 -7 --------- Run | Scr Mat Min Mat Min Exi Min Mat Fac Low Low Distress Signals 8 | . 2 . 1 1 . . 4 . . . Communications Jammed . | . . . . . . . . . . . Distress Signals . | . . . . . . . . . . . Times Spotted 130 | . 18 11 18 25 . . 34 14 . 10 Peak Tracking Total 8 | . 4 6 3 4 . . 8 4 . 6 Tactical Retreats 17 | . 3 2 . 5 . . 6 1 . . Traps | -11 -10 -10 -9 -9 -9 -8 -8 -7 -7 -7 ------- Run | Scr Mat Min Mat Min Exi Min Mat Fac Low Low Traps Triggered 2 | . . . . . . . 2 . . . Indirectly . | . . . . . . . . . . . Trap Hack Attempts . | . . . . . . . . . . . Triggered . | . . . . . . . . . . . Disarmed . | . . . . . . . . . . . Reprogrammed 4 | . 4 . . . . . . . . . Reused 1 | . 1 . . . . . . . . . Traps Extracted . | . . . . . . . . . . . Installed . | . . . . . . . . . . . Triggered 1 | . 1 . . . . . . . . . Exploded 1 | . . . . . 1 . . . . . Machines | -11 -10 -10 -9 -9 -9 -8 -8 -7 -7 -7 ---------- Run | Scr Mat Min Mat Min Exi Min Mat Fac Low Low Machines Disabled 4 | . 1 . 1 1 . . . . . 1 Max in Single Turn 1 | . 1 . . 1 . . . . . 1 Machines Sabotaged . | . . . . . . . . . . . Garrisons Compromised . | . . . . . . . . . . . Overloaded Fab Kills . | . . . . . . . . . . . Hacking | -11 -10 -10 -9 -9 -9 -8 -8 -7 -7 -7 --------- Run | Scr Mat Min Mat Min Exi Min Mat Fac Low Low Machines Accessed 25 | . 6 1 2 . 1 . 5 9 . 1 Terminals 21 | . 6 1 2 . . . 5 7 . . Fabricators . | . . . . . . . . . . . Repair Stations 1 | . . . . . . . . 1 . . Recycling Units . | . . . . . . . . . . . Scanalyzers 1 | . . . . . . . . 1 . . Garrison Access . | . . . . . . . . . . . Total Hacks 63 | . 18 1 4 . 1 . 15 23 . 1 Successful 38 | . 12 1 4 . 1 . 9 10 . 1 Failed 25 | . 6 . . . . . 6 13 . . Catastrophic 5 | . 2 . . . . . 1 2 . . Database Lockouts . | . . . . . . . . . . . Manual 45 | . 13 1 4 . 1 . 12 13 . 1 Terminals 55 | . 18 1 4 . . . 15 17 . . Fabricators . | . . . . . . . . . . . Repair Stations 3 | . . . . . . . . 3 . . Recycling Units . | . . . . . . . . . . . Scanalyzers 3 | . . . . . . . . 3 . . Garrison Access . | . . . . . . . . . . . Terminal Hacks 12 | . 5 1 . . 1 . 2 2 . 1 Record 1 | . 1 . . . . . . . . . Prototype ID Bank 1 | . . . . . . . 1 . . . Open Door 1 | . . . . . . . . . . 1 Branch Access Points 3 | . 2 . . . . . . 1 . . Alert Level 1 | . . . . . . . . 1 . . Locate Traps 2 | . 1 . . . . . 1 . . . Reprogram Traps 1 | . 1 . . . . . . . . . Zone Layout 1 | . . 1 . . . . . . . . EX-Prototype ID Bank 1 | . . . . . 1 . . . . . Fabricator Hacks . | . . . . . . . . . . . Repair Station Hacks 2 | . . . . . . . . 2 . . Scan Component 1 | . . . . . . . . 1 . . Repair 1 | . . . . . . . . 1 . . Recycling Unit Hacks . | . . . . . . . . . . . Scanalyzer 1 | . . . . . . . . 1 . . Insert Component 1 | . . . . . . . . 1 . . Garrison Access Hacks . | . . . . . . . . . . . Unauthorized Hacks 23 | . 7 . 4 . . . 7 5 . . Terminals 23 | . 7 . 4 . . . 7 5 . . Track 7 | . 3 . 2 . . . 2 . . . Assimilate 1 | . . . . . . . 1 . . . Botnet 15 | . 4 . 2 . . . 4 5 . . Fabricators . | . . . . . . . . . . . Repair Stations . | . . . . . . . . . . . Recycling Units . | . . . . . . . . . . . Scanalyzers . | . . . . . . . . . . . Garrison Access . | . . . . . . . . . . . Data Cores Recovered . | . . . . . . . . . . . Used . | . . . . . . . . . . . Hacking Detections 16 | . 4 1 1 . . . 3 7 . . Full Trace Events 3 | . 2 . . . . . . 1 . . Feedback Events 1 | . 1 . . . . . . . . . Corruption 1 | . 1 . . . . . . . . . Feedback Blocked . | . . . . . . . . . . . Robot Schematics Acquired . | . . . . . . . . . . . Robots Built . | . . . . . . . . . . . Authchips . | . . . . . . . . . . . Time . | . . . . . . . . . . . Total Robot Build Rating . | . . . . . . . . . . . Part Schematics Acquired . | . . . . . . . . . . . Parts Built . | . . . . . . . . . . . Authchips . | . . . . . . . . . . . Time . | . . . . . . . . . . . Total Part Build Rating . | . . . . . . . . . . . Parts Repaired 1 | . . . . . . . . 1 . . Time 22 | . . . . . . . . 22 . . Parts Recycled . | . . . . . . . . . . . Recycled Matter . | . . . . . . . . . . . Retrieved Matter . | . . . . . . . . . . . Retrieved Components . | . . . . . . . . . . . Parts Scanalyzed 1 | . . . . . . . . 1 . . Part Schematics Acquired . | . . . . . . . . . . . Parts Damaged . | . . . . . . . . . . . Bothacking | -11 -10 -10 -9 -9 -9 -8 -8 -7 -7 -7 ------------ Run | Scr Mat Min Mat Min Exi Min Mat Fac Low Low Used RIF Installer . | . . . . . . . . . . . Robots Hacked . | . . . . . . . . . . . Non-combat . | . . . . . . . . . . . Combat . | . . . . . . . . . . . Robot Hacks Applied . | . . . . . . . . . . . Relay Couplers Released . | . . . . . . . . . . . Fabnet Peak Effective % . | . . . . . . . . . . . Robots Rewired . | . . . . . . . . . . . Allies Hacked . | . . . . . . . . . . . Hacks Repelled . | . . . . . . . . . . . Allies | -11 -10 -10 -9 -9 -9 -8 -8 -7 -7 -7 -------- Run | Scr Mat Min Mat Min Exi Min Mat Fac Low Low Total Allies 2 | . . 2 . . . . . . . . Largest Group 2 | . . . 2 1 . . . . . . Highest-Rated Group 42 | . . . 42 31 . . . . . . Highest-Rated Ally 31 | . . . 31 31 . . . . . . Total Orders . | . . . . . . . . . . . Ally Attacks 60 | . . . 41 19 . . . . . . Total Damage 807 | . . . 511 296 . . . . . . Kills 16 | . . . 11 5 . . . . . . Allies Corrupted . | . . . . . . . . . . . Allies Melted . | . . . . . . . . . . . Intel | -11 -10 -10 -9 -9 -9 -8 -8 -7 -7 -7 ------- Run | Scr Mat Min Mat Min Exi Min Mat Fac Low Low Robot Analysis Total . | . . . . . . . . . . . Derelict Logs Recovered 2 | . . . . 1 . . . . . 1 Drone Launches . | . . . . . . . . . . . Drone Recoveries . | . . . . . . . . . . . Exploration | -11 -10 -10 -9 -9 -9 -8 -8 -7 -7 -7 ------------- Run | Scr Mat Min Mat Min Exi Min Mat Fac Low Low Turns Passed 7784 | . 1234 199 658 1316 326 177 1520 1219 452 683 Spaces Moved 3929 | 1 685 132 363 491 220 111 515 650 340 421 Core . | . . . . . . . . . . . Treads 698 | . . . 182 491 24 . 1 . . . Legs 1695 | 1 67 . . . . . 251 650 340 386 Wheels 1536 | . 618 132 181 . 196 111 263 . . 35 Hover . | . . . . . . . . . . . Flight . | . . . . . . . . . . . Fastest Speed 90 | 120 105 105 105 240 135 135 90 116 126 115 Average Speed 143 | 120 116 105 157 240 146 135 133 123 129 133 Slowest Speed 320 | 120 190 105 240 240 240 135 320 130 130 200 Overloaded Moves . | . . . . . . . . . . . Propulsion Burnouts . | . . . . . . . . . . . Robots Hopped . | . . . . . . . . . . . Cave-ins Triggered . | . . . . . . . . . . . Exploration Rate (%) 48 | 2 95 39 47 83 63 35 35 18 62 56 Regions Visited 10 Branch Regions 6 Pre-discovered Areas 1 | . . . . 1 . . . . . . Known Exits Taken 3 | . 1 . . . . . . 1 1 . Unknown Exits Taken 7 | 1 . 1 1 1 1 1 1 . . . Scrap Searched 8 | . . 1 . 2 . . . . 3 2 Spaces Dug 34 | . . 14 . . . . 8 12 . . Terrain Destroyed 95 | . 9 56 1 2 . . 14 12 . 1 Melee 20 | . . . . . . . 8 12 . . Projectile 10 | . . . 1 2 . . 6 . . 1 AOE 65 | . 9 56 . . . . . . . . Terrain Rammed . | . . . . . . . . . . . Walls Destroyed . | . . . . . . . . . . . Machines Disabled . | . . . . . . . . . . . Actions | -11 -10 -10 -9 -9 -9 -8 -8 -7 -7 -7 --------- Run | Scr Mat Min Mat Min Exi Min Mat Fac Low Low Total 5620 | . 1043 167 417 571 224 138 1213 1001 350 496 Wait 1264 | . 287 13 14 46 . 28 575 282 . 19 Move 3919 | . 684 131 362 490 219 110 514 649 339 421 Hop . | . . . . . . . . . . . Pick Up 51 | . 7 . 10 4 1 . 13 8 5 3 Fast Attach 19 | . 7 . 4 . . . 6 1 . 1 Attach 35 | . 2 3 1 1 . . 10 3 . 15 Detach 14 | . 5 . . . . . 1 . . 8 Swap 37 | . 5 2 4 . 3 . 14 5 3 1 Drop 31 | . 2 . 7 3 1 . 7 8 2 1 Fire 139 | . 43 18 15 26 . . 23 . . 14 Melee 109 | . . . . . . . 50 45 1 13 Ram 1 | . 1 . . . . . . . . . Kick . | . . . . . . . . . . . Crush 1 | . . . . 1 . . . . . . Escape Stasis . | . . . . . . . . . . . Rewire . | . . . . . . . . . . . Trap . | . . . . . . . . . . . Miscellaneous . | . . . . . . . . . . . Route ------- -11/Scrapyard -10/Materials (discovered 4 exits: *Mat x3 / *Min) -10/Mines -9/Materials (discovered 3 exits: *Mat / *Min x2) -9/Mines (discovered 2 exits: *Mat / *Exi) -9/Exiles -8/Mines -8/Materials -7/Factory (discovered 3 exits: Sto / *Low x2) -7/Lower Caves -7/Lower Caves (discovered 1 exit: *Fac) History --------- Turn | Location | Event 1 | -11/Scrapyard | Discovered new exit (range 0) 1 | -11/Scrapyard | Entered Materials 104 | -10/Materials | Identified exit to Mines 301 | -10/Materials | Discovered new exit (range 4) 318 | -10/Materials | Build established: Mutant 461 | -10/Materials | Discovered new exit (range 15) 640 | -10/Materials | Discovered new exit (range 3) 1235 | -10/Materials | Entered Mines 1251 | -10/Mines | Assembled infested the area 1311 | -10/Mines | Core integrity fell below 50% 1331 | -10/Mines | Destroyed 8 combat bots 1426 | -10/Mines | Discovered new exit (range 8) 1434 | -10/Mines | Entered Materials 1434 | -9/Materials | Accompanied by 2 allies 1434 | -9/Materials | Evolved 2 slots: Utility x1, Weapon x1 1439 | -9/Materials | Led the pair of lost Derelicts to an unsafe place 1601 | -9/Materials | Discovered new exit (range 16) 1850 | -9/Materials | Build established: Gunner 1872 | -9/Materials | Discovered new exit (range 10) 2044 | -9/Materials | Discovered new exit (range 7) 2092 | -9/Materials | Entered Mines 2092 | -9/Mines | Accompanied by 1 ally 2102 | -9/Mines | Met a Derelict bent on vengeance 2842 | -9/Mines | Discovered new exit (range 15) 3398 | -9/Mines | Deemed a non-threat by the Exiles lab entrance 3398 | -9/Mines | Discovered new exit (range 5) 3408 | -9/Mines | Entered Exiles 3466 | -9/Exiles | Met 8R-AWN 3492 | -9/Exiles | Met EX-HEX 3530 | -9/Exiles | Met EX-BIN 3548 | -9/Exiles | Aligned with FarCom system 3549 | -9/Exiles | Given EX-Vault access code 3580 | -9/Exiles | Opened EX-Vault 3610 | -9/Exiles | Warned to stay clear of 0b10 Research branches 3635 | -9/Exiles | Exiles lab attacked by MAIN.C 3721 | -9/Exiles | Discovered new exit (range 12) 3734 | -9/Exiles | Entered Mines 3904 | -8/Mines | Discovered new exit (range 6) 3911 | -8/Mines | Entered Materials 3911 | -8/Materials | Evolved 2 slots: Utility x2 4029 | -8/Materials | Build established: Skirmisher 4507 | -8/Materials | Lost 4 parts (1p2n1w) 4565 | -8/Materials | Lost 4 parts (1u3w) 4819 | -8/Materials | Build established: Assassin 5078 | -8/Materials | Core integrity fell below 50% 5401 | -8/Materials | Discovered new exit (range 14) 5408 | -8/Materials | Build established: Scavenger-Mutant 5431 | -8/Materials | Entered Factory 5431 | -7/Factory | Evolved 2 slots: Propulsion x1, Utility x1 5811 | -7/Factory | Repaired Imp. Titanium Leg 5924 | -7/Factory | Build established: Scavenger-Assassin 6201 | -7/Factory | Identified exit to Storage 6201 | -7/Factory | Identified exit to Lower Caves 6650 | -7/Factory | Entered Lower Caves 6927 | -7/Lower Caves | Build established: Mutant 6988 | -7/Lower Caves | Encountered a Warlord checkpoint 7094 | -7/Lower Caves | Discovered new exit (range 5) 7101 | -7/Lower Caves | Identified exit to Lower Caves 7102 | -7/Lower Caves | Entered another Lower Caves area 7115 | -7/Lower Caves | Discovered new exit (range 6) 7121 | -7/Lower Caves | Identified exit to Factory 7132 | -7/Lower Caves | Attracted the attention of an 0b10 checkpoint 7445 | -7/Lower Caves | Acquired the password to a Derelict Tinkerer's latest research 7454 | -7/Lower Caves | Found Prototype Special Weapon 7454 | -7/Lower Caves | Identified Molecular Deconstructor 7505 | -7/Lower Caves | Found Prototype Device 7657 | -7/Lower Caves | Learned 4 Factory zone layouts 7690 | -7/Lower Caves | Caught by Unaware searching for contraband prototypes 7692 | -7/Lower Caves | Caught by Unaware searching for contraband prototypes 7712 | -7/Lower Caves | Core integrity fell below 50% 7742 | -7/Lower Caves | Lost 7 parts (1p3n3w) 7758 | -7/Lower Caves | Identified Heart of Steel 7766 | -7/Lower Caves | Core integrity fell below 20% 7781 | -7/Lower Caves | System corruption reached 10% 7785 | -7/Lower Caves | Destroyed by H-66 Slayer with Gauss Rifle Last Messages --------------- 07758_ Identified Heart of Steel. 07759_ H-66 Slayer core entropy levels peaking. 07759_ Hvy. Assault Rifle fries itself beyond repair. 07760_ Flak Gun destroyed. 07760_ Penetrated by Slug. 07761_ Wall disintegrates. 07761_ Wall destabilizing. 07763_ Wall disintegrates. 07763_ Wall destabilizing. 07763_ Penetrated by Slug. 07764_ Wall disintegrates. 07764_ Concrete destabilizing. 07765_ P-70 Sage resets X-72 Disruptor, system corruption cleaned. 07767_ Concrete disintegrates. 07767_ Penetrated by Slug. 07773_ Lgt. Nuclear Core destroyed. 07776_ Imp. Titanium Leg destroyed. 07777_ X-72 Disruptor destroyed. 07779_ Slug penetrates Wall. 07782_ Penetrated by Slug. Map ----- +----------------------------------------------------+ | ?????????????????????????????????????????????????? | | ?????????????????????????????????????????????????? | | ?????????????????????????????????????????????????? | | ???????????????????????????????? ????????????????? | | ???????????????????????????# ??? ????????????????? | | ??????????????????????????## ??? #???????????????? | | ?????????????????????????## """ ##??????####????? | | ???????????????????####### """ #?????? ?????? | | ????????????????? ##????# ?????? | | ????????????????? ##??# ?????? | | ?????????????????# ? #??# #?????? | | ????????????????## ? #??# #?????? | | ???????????????## ??# #??# #?????? | | ?????????????? # #??# #??# #?????? | | ????????????? #??# #??# #?????? | | ?????????????? #### #### #?????# | | ???????????????# #?????X | | ???????????????# #???? # | | ????????????????# #########% ##??? # | | ????????????????# ##???????# ##?? # | | ????????????????# ####????????# ### # | | ????????????????# ## ##???????????## | | ????????????????????# ###???????????## ## | | ????????????????????## #???????????## # | | ?????????????????????## #???????????# | | ??????????????????????## @% #???????????# | | ???????????????????????### ##?####?????# | | ????????????????????????## #?# ##????# | | ???????????????????????## ### #????# | | ??????????????????????## hp= ##???## | | ??????????????????????# x! ###?##! ### | | ??????????????????????# #?#[%!#??## | | ??????????????????????###### ### #?#%=##???? | | ???????????????????????????######??#####?#%%###### | | ?????????????????????????????????????????#%[ | | ?????????????????????????????????????????# | | ?????????????????????????????????????????######### | | ?????????????????????????????????????????????????? | | ?????????????????????????????????????????????????? | | ?????????????????????????????????????????????????? | | ?????????????????????????????????????????????????? | | ?????????????????????????????????????????????????? | | ?????????????????????????????????????????????????? | | ?????????????????????????????????????????????????? | | ?????????????????????????????????????????????????? | | ?????????????????????????????????????????????????? | | ?????????????????????????????????????????????????? | | ?????????????????????????????????????????????????# | | ???????????????????????????????????????????????### | | ??????????????????????????????????????????????## | +----------------------------------------------------+ Best States ------------- Heat Dissipation 38 Energy Generation 14 Energy Capacity 250 Matter Stores 300 Matter Capacity 300 Sight Range 16 Terrain Scan Range 16 Terrain Scan Density 110 Armor Coverage 150 Evasion (%) 55 Targeting Accuracy 8 Melee Accuracy 11 Core Analysis 6 Recoil Reduction 2 Item Schematics ----------------- None Robot Schematics ------------------ None Fabricated ------------ Nothing Alien Tech Used ----------------- None Achievements -------------- Deconstruction Challenges ------------ None Game ------ Seed RocketHeavyExtractor Manual? 0 Play Time 01:03:47 Cumulative 64.0 hours Start 2022.07.01 @ 15:54:06 End 2022.07.01 @ 16:56:14 Sessions 1 Manual Loads 0 Difficulty Rogue Special Mode None Game No. 97 Rogue 97 Adventurer 0 Explorer 0 Win Type - Total 1 Types 1/0/0/0/0/0/0/0/0 Lore% 37 Gallery% 40 Achievement% 34 Wizard Run 0 Options --------- ASCII 0 Keyboard 1 Movement Vi Keybinds 1 Fullscreen 1 Font 24/Smallcaps Map View 76x50 Tactical HUD 1 Map Filters NONE Filters NONE Steam 1 RUN: 8011f322-d189-4872-a534-b64c77472417